Workbook

Sheet rinnovi
A1: COMUNE DI SESTO FIORENTINO | C1: Allegato A
A2: Servizio Economato Provveditorato
A4: Riepilogo spesa abbonamenti pubblicazioni 2015
A6: Servizi Istituzionali Cap. 5110 | B6: Importo € | C6: =SUM(B7:B12) -> 1027.77
A7: Ilsole24ore - cartaceo | B7: 500
A8: Messagenet F@x in-Messagenet Srl | B8: 61
A9: PAWEB - Editrice CEL (postazione ulteriore-segreteria.sindaco@comune.sesto-fiorentino.fi.it) | B9: 64.8
A10: REPUBBLICA ON LINE - 6 MESI | B10: 99.99
A11: LA NAZIONE ON LINE | B11: 99.99
A12: CORRIERE DELLA SERA ON LINE - | B12: 201.99
A14: Dirigente Settore Finanziario e Organizzativo Cap. 7110 | C14: =SUM(B15:B24) -> 1322.19
A15: Guida Enti Locali il sole 24 ore-RIVISTE24-on line | B15: 146.89
A17: Servizi Finanziari Cap. 7110
A18: LA FINANZA LOCALE (COD.CLIENTE 150044) Ed. MAGGIOLI PERIODICI | B18: 243.3
A19: Il Sole 24 Ore cod. 438879 | B19: 245
A20: PAWEB - Editrice CEL (postazione ulteriore) | B20: 64.8
A21: Vademecum 2015 on line Cel commerciale - | B21: 256.2
A23: Servizio Economato Cap. 7110
A24: Appalti&Contratti - Maggioli (abb.sito internet) | B24: 366
A26: Servizio Tributi Cap. 8110 | C26: =SUM(B27) -> 64.8
A27: PAWEB - Editrice CEL (postazione ulteriore) | B27: 64.8
A29: Risorse Professionali Cap. 6110 | C29: =SUM(B30:B33) -> 642.99
A30: Guida P.I. Il Sole 24 ore-RIVISTE24-on line | B30: 146.89
A31: PAWEB - Editrice CEL (postazione ulteriore) | B31: 64.8
A32: RU - Risorse Umane (COD.CLIENTE 150044) Ed. MAGGIOLI PERIODICI | B32: 231.3
A33: Personale News - Publika-riv.quindicinale | B33: 200
A35: Segretario Generale Cap.5111 | C35: =SUM(B36:B37) -> 551.6
A36: PAWEB - Editrice CEL - (postazione principale) | B36: 486.8
A37: PAWEB - Editrice CEL - (postazione ulteriore) | B37: 64.8
A39: Affari Generali - Ufficio Gare -Cap. 12110 | C39: =SUM(B40) -> 122
A40: www.appaltiecontratti.it-maggioli (postazione ulteriori) | B40: 122
A42: Servizio Legale Cap. 12110/1 | C42: =SUM(B43:B49) -> 1701.19
A43: Foro Italiano - Zanichelli Editore | B43: 355
A44: Gius Agenda Legale-Wolters Kluwer Italia- N.2 COPIE | B44: 110
A45: Agenda Legale-Edit.Emmeelle Il Momento Leg.vo-2 vol. | B45: 48.5
A46: Lexitalia.it Casa Ed. Giuriconsult Srl-tipo premium | B46: 488
A47: Lexitalia.it Casa Ed. Giuriconsult Srl-tipo premium - UTILIZZATA ANCHE DAL SEGRETARIO | B47: 488
A48: PAWEB - Editrice CEL (postazione ulteriore) | B48: 64.8
A49: RIVISTE24 Diritto il sole 24 ore-on line | B49: 146.89
A51: Servizio Patrimonio Cap. 9110 | C51: =SUM(B52:B53) -> 859.89
A52: Esproprionline EOL Tipologia-payfull - Exeo Srl | B52: 713
A53: Consulente Immobiliare-Il sole 24 ore-RIVISTE24-on line | B53: 146.89
A55: Attività Economiche Cap.lo 44110 | C55: =SUM(B56:B57) -> 399.6
A56: Commercio e attività produttive-Maggioli (riv.cartacea) | B56: 168.3
A57: Disciplina commercio e servizi con newsl.-Maggioli | B57: 231.3
A59: Assetto Territorio Cap. 30110 | C59: =SUM(B60:B61) -> 211.7
A60: Edilizia e Territorio Il Sole 24 ore-RIVISTE24-on line | B60: 146.9
A61: PAWEB - Editrice CEL (postazione ulteriore) | B61: 64.8
A63: Lavori Pubblici Cap. 10101/2 | C63: =SUM(B64:B69) -> 889.88
A64: Guida Enti Locali-il sole 24 ore-RIVISTE24-on line | B64: 146.89
A65: Bollettino Ingegneri - Ad Agency Gl Sas | B65: =175+1.3 -> 176.3
A66: Edilizia e Territorio-Il Sole 24 ore-RIVISTE24-on line | B66: 146.89
A67: I servizi funerari - Editore Euroact Srl | B67: 125
A68: www.euroact.net-Euroact Srl -abb.internet - normale | B68: 230
A69: PAWEB - Editrice CEL (postazione ulteriore) | B69: 64.8
A71: Polizia Municipale Cap. 13100/2 | C71: =SUM(B72:B79) -> 4726.28
A72: Guida Enti Locali-Il sole 24 ore-RIVISTE24-nuovo abb.on line | B72: 146.9
A73: Il Codice della Strada-Ediz.Egaf-Comando P.M.-sinistri | B73: 123
A74: Prontuario delle violazioni alla circolazione stradale-formula abb.-n.51 copie-Egaf - | B74: 1203.6
A75: Studi NET - Open Software Srl (n.1+1 Gratuito) | B75: 390.4
A76: Ufficiocommercio.it-banca dati on-line-Maggioli | B76: 402.6
A77: vigilaresullastrada.it - Maggioli | B77: 366
A78: ancitel-servizio consultazione veicoli rubati | B78: 631
A79: Servizi Informativi Internet Anci (arriva fatt.da pag.Ancitel) | B79: 1462.78
A81: Servizio Mobilità Cap.27101/2 | C81: =SUM(B82) -> 146.9
A82: Edilizia e Territorio-Il sole 24 ore-RIVISTE24-.on line | B82: 146.9
A84: Servizi Demografici Cap. 11110 | C84: =SUM(B85:B86) -> 276.8
A85: Lo Stato Civile italiano - Sepel Sas | B85: 212
A86: PAWEB - Editrice CEL (postazione ulteriore) | B86: 64.8
A88: Centro Il Melograno Cap. 37110 | C88: =SUM(B89:B89) -> 146.9
A89: Guida Enti Locali-Il Sole 24 Ore-RIVISTE24-on line | B89: 146.9
A91: Servizi educativi culturali sportivi 19110 | C91: =SUM(B92:B92) -> 64.8
A92: PAWEB - Editrice CEL (postazione ulteriore) | B92: 64.8
A93: ASILI NIDO 36110 | C93: =SUM(B94:B95) -> 216.8
A94: Rivista Bambini (N.4 COPIE )-Spaggiari Edit.tel.0521949011 | B94: 216.8
A96: Biblioteca - quotidiani 20110 | C96: =SUM(B97:B104) -> 3587.11
A97: PA WEB - Editr.Cel -(Postazione ulteriore) | B97: 64.8
A98: LA NAZIONE | B98: =500*7+22.31 -> 3522.31
A99: LA REPUBBLICA
A100: IL CORRIERE DELLA SERA
A101: LA GAZZETTA DELLO SPORT
A102: IL FOGLIO
A103: IL MANIFESTO
A104: METROPOLI
A106: Biblioteca - riviste 20110 | C106: =SUM(B107:B128) -> 1140.8
A107: ACCADEMIA DELLA CRUSCA | B107: 15
A108: ARCHEOLOGIA VIVA | B108: =26.4+1.3 -> 27.7
A109: ART & DOSSIER | B109: 49.3
A110: BELL'EUROPA (Cairo Editore) | B110: 34
A111: BELL'ITALIA (Cairo Editore) | B111: 36
A112: BIBLIOTECHE OGGI | B112: 105
A113: ESPRESSO | B113: 70.3
A114: FIRENZE SPETTACOLO | B114: 23.3
A115: FUORI BINARIO | B115: 30
A116: IL MUCCHIO SELVAGGIO | B116: 62
A117: IL VERNACOLIERE | B117: 27
A118: INTERNAZIONALE | B118: 86
A119: LA NUOVA ECOLOGIA | B119: 28.3
A120: LIBER RIVISTA | B120: 45.3
A121: MICROMEGA (bimestrale) | B121: 50.3
A122: MUSICA JAZZ | B122: 70
A123: PANORAMA | B123: 45
A124: PASSATO E PRESENTE (Ed.franco angeli) | B124: 59
A125: PATRIA INDIPENDENTE | B125: 26.3
A126: QUADERNI STORICI | B126: 108
A127: RICERCHE STORICHE | B127: 50
A128: SOCIETA' E STORIA (Ed.franco angeli) | B128: 93
C130: =SUM(C1:C128) -> 18100

Sheet Foglio1
